{"text_format":"1","workbook":"xlsx","n_sheets":5,"sheets":["Zamówienie Kart","Specyfikacja do zasilenia ","Kalkulator i spec. konfekcji","Specyfikacja konfekcji","Arkusz3"],"not_rendered":{"charts":0,"images":3,"macros":0,"external_links":0,"defined_names":2,"comments":0,"pivot_tables":0},"unopened":[],"bounds":{"document_bytes":16777216,"sheet_cells":100000,"rows_first":2000,"rows_last":500,"rows_between":2000,"halvings":0,"cell_chars":16384,"cell_head_chars":4096},"cells_cut":0,"cells_raw":0,"read":"whole","date_system":"1900"}

{"sheet":"Zamówienie Kart","index":0,"n_rows":58,"n_cols":10,"rows_kept":58,"cut":false,"hidden":false,"merged":[[24,3,24,7],[28,1,28,6],[29,1,30,6],[40,2,40,5],[39,8,39,10],[30,9,30,10],[32,8,38,10],[38,2,38,5],[37,2,37,3],[29,8,29,10],[40,8,41,8],[40,9,41,10],[12,1,12,4],[24,1,24,2],[25,1,25,2],[44,1,44,2],[50,1,51,2],[35,2,35,3],[39,2,39,5],[35,4,35,5],[36,4,36,5],[44,3,44,6],[34,2,34,3],[33,2,33,5],[32,2,32,5],[34,4,34,5],[13,1,13,4],[17,1,17,10],[18,3,18,10],[19,1,19,2],[18,1,18,2],[16,1,16,10],[15,1,15,11],[64,13,64,18],[42,16,61,21],[50,3,51,6],[49,2,49,6],[43,3,43,6],[46,1,46,6],[44,8,45,8],[44,9,45,10],[43,9,43,10],[45,3,45,6],[53,1,56,6],[46,8,56,10],[47,2,47,6],[73,2,73,12],[3,1,3,3],[3,4,3,10],[10,1,10,7],[13,5,13,11],[6,1,6,2],[5,1,5,10],[8,8,8,10],[9,4,9,7],[14,1,14,11],[8,3,8,7],[6,3,6,7],[6,8,6,10],[7,1,7,2],[8,1,8,2],[7,8,7,10],[72,0,72,12],[43,1,43,2],[45,1,45,2],[42,1,42,6],[42,8,42,10],[57,1,57,10],[48,2,48,6],[3,0,55,0],[31,8,31,10],[7,3,7,7],[11,1,11,11],[9,8,9,10],[10,8,10,10],[19,3,19,10],[31,1,31,5],[32,11,34,11],[1,1,1,10],[37,4,37,5],[36,2,36,3],[21,1,21,2],[21,3,21,4],[20,3,20,10],[28,9,28,10],[23,1,23,10],[27,1,27,6],[27,8,27,10],[20,1,20,2],[21,8,21,10],[25,3,25,7],[24,9,24,10],[25,9,25,10],[12,5,12,11]]}
[3]
[]
[]
["www.pluxee.pl, e-mail: kontakt@pluxeegroup.com, tel.: 22 535 14 14","Key Account Manager/Przedstawiciel Pluxee:"]
[]
[null,"I. Dane Klienta (Podmiotu zamawiającego do dokumentów finansowo-księgowych):"]
[null,"Nazwa Firmy: ",null,null,null,null,null,null,"Adres do wysyłki faktury Proforma oraz informacji o statusie zamówienia:"]
[null,"Ulica: ",null,null,null,null,null,null,"e-mail:"]
[null,"Kod, miasto:",null,null,null,null,null,null,"Adres do przesłania dokumentów księgowych:"]
[null,"NIP:",null,"Telefon:",null,null,null,null,"e-mail:"]
[null,"Nr rachunku bankowego Klienta (rachunek, z którego będą opłacane wszystkie należności wynikające z zamówienia):"]
[null,"Zapłata przez podmiot trzeci (możliwość zapłaty przez podmiot inny niż Klient podlega akceptacji Pluxee):"]
[null,"Nazwa, adres i NIP podmiotu trzeciego : "]
[null,"Nr rachunku bankowego podmiotu trzeciego:",null,null,null,null,null,null,null,"Telefon:"]
[null,"                                          Zamawiający posiada stałe miejsce prowadzenia działaności poza terytorium Polski*"]
[null,"                                          Karty są wydawane osobom zajmującym eksponowane stanowisko polityczne**"]
[null,"W przypadku konieczności wskazania na dokumentach księgowych danych ODBIORCY prosimy o uwzględnienie tego w polu UWAGI"]
[null,"II.  Dostawa Kart (jeśli adres dostawy jest inny niż podany w sekcji I.):"]
[null,"Nazwa Firmy:"]
[null,"Ulica:"]
[null,"Kod, miasto:"]
[null,"Liczba punktów doręczeń (min 1):",null,1,null,"Liczba Użytkowników Kart: "]
[]
[null,"III. Dane osoby upoważnionej do odbioru Kart (prosimy o podanie danych dwóch osób):"]
[null,"Imię i nazwisko: ",null,null,null,null,null,null,"Telefon:"]
[null,"Imię i nazwisko: ",null,null,null,null,null,null,"Telefon:"]
[]
[null,"IV. Zamawiam Karty Pluxee Nagroda w opcji i okresie ważności:",null,null,null,null,null,null,"V.Proponowana data dostawy Kart:"]
[null,"zbliżeniowa na maxa!  - 18 mies.                                zbliżeniowa na maxa!  - 12 mies.  \n\n(wielokrotne zasilenia dowolną kwotą)",null,null,null,null,null,null,"(dzień - miesiąc - rok):"]
[null,"                magnetyczna na raz! - 12 mies.  (jednorazowe zasilenie do 630 zł)  ",null,null,null,null,null,null,"VII. Proponowana data zasilenia/aktywacji Kart:"]
[null,null,null,null,null,null,null,null,"(dzień - miesiąc - rok):"]
[null,"VI. Specyfikacja zamówienia Kart Pluxee Nagroda:",null,null,null,null,"Wartość (PLN)"]
[null,"A","Łączna ilość Kart:",null,null,null,0,null,"UWAGI: "]
[null,"B","Łączna wartość zasileń:",null,null,null,0]
[null,"C","Prowizja od wartości zasilenia Kart (7%/min.25zł):",null,7.0000000000000007E-2,null,{"$f":"IF(E35*G34<=25,25,E35*G34)","v":25}]
[null,"D","Opłata za przygotowanie i dostawę przesyłki:",null,60,null,{"$f":"E36*D22","v":60}]
[null,"E","Konfekcja wg kalkulatora:",null,null,null,{"$f":"'Kalkulator i spec. konfekcji'!E30","v":0}]
[null,"F","Opłata za wydanie Kart (A*F): ",null,{"$f":"IF($A$1=1,11.9,IF($A$1=2,9.9,IF($A$1=3,14.9,12.9)))","v":14.9},null,{"$f":"G33*E38","v":0}]
[null,null,"Suma netto:",null,null,null,{"$f":"G34+G35+G36+G37+G38","v":85}]
[null,"G","Podatek VAT (23%) (od poz. C+D+E+F):",null,null,null,{"$f":"ROUND(23%*G35,2)+ROUND(23%*SUM(G36:G38),2)","v":19.55},null,"VIII. Nr tel. komórkowego na potrzeby konfekcji:"]
[null,"H","Razem do zapłaty:",null,null,null,{"$f":"SUM(G39:G40)","v":104.55},null,"Numer telefonu do wysyłki SMS z hasłem:"]
[]
[null,"IX. Wypełnia Klient (dane osoby, która sporządziła niniejsze zamówienie oraz pieczęć firmowa):",null,null,null,null,null,null,"X.  Wypełnia Pluxee (dane osoby, która przyjęła niniejsze zamówienie): "]
[null,"Imię i nazwisko:",null,null,null,null,null,null,"Imię i nazwisko:"]
[null,"E-mail:",null,null,null,null,null,null,"Numer zamówienia: "]
[null,"Nr telefonu:"]
[null,"Prosimy zaznacz poniższe zgody, jeśli dotychczas ich nie wyrażałaś/eś:",null,null,null,null,null,null,"* Oświadczenie dotyczy wykorzystywania zakupionych usług na potrzeby stałego miejsca prowadzenia działalności, które znajduje się poza terytorium Polski, w rozumieniu art. 28b ustawy z dnia 11 marca 2004 r. o podatku od towarów i usług (Dz.U. 2004 Nr54 poz 535 VAT z późn. Zm.).\n** Oświadczenie Zamawiającego dotyczy wydawania Kart osobom zajmującym eksponowane stanowisko polityczne w rozumieniu art. 2 ust. 2 ustawy z dnia 1 marca 2018 r. o przeciwdziałaniu praniu pieniędzy oraz finansowaniu terroryzmu.\nAdministratorem Twoich danych osobowych jest Pluxee Polska Sp. z o.o. z siedzibą w Warszawie, ul. Rzymowskiego 53 (\"Pluxee\"). Dane kontaktowe Inspektora Ochrony Danych: privacy.pl@pluxeegroup.com, nr tel. (22) 535 11 11. Twoje dane będą przetwarzane w celach marketingowych Pluxee (podstawa przetwarzania danych to realizacja prawnie uzasadnionych interesów Pluxee w postaci marketingu produktów i usług Pluxee – art. 6 ust. 1 lit. f) RODO), w tym w sposób zautomatyzowany (profilowanie). Pluxee wykorzystuje profilowanie prowadząc statystyki i analizy Twoich zachowań oraz preferencji, związanych z zakupem lub korzystaniem z produktów i usług Pluxee w celu lepszego dopasowania do Twoich oczekiwań oferowanych produktów i usług. W wyniku profilowania dokonywanego przez Pluxee będziesz otrzymywać informacje o produktach i usługach lepiej dostosowanych do Twoich preferencji. Tylko w przypadku, gdy wyrazisz na to wyraźną zgodę, Pluxee będzie przetwarzać Twoje dane osobowe w celu profilowania, którego skutkiem będą automatycznie podejmowane decyzje, mające dla Ciebie znaczenie np. udzielenie rabatów lub ofert specjalnych (podstawa przetwarzania danych to Twoja zgoda – art. 6 ust. 1 lit. a) RODO). Podanie przez Ciebie danych osobowych jest dobrowolne. Skutkiem niepodania danych będzie brak możliwości informowania Cię o produktach i usługach Pluxee. Twoje dane mogą być przekazywane podmiotom świadczącym na naszą rzecz usługi serwisowe z zakresu IT, usługi telemarketingu oraz podmiotom przygotowującym i realizującym dla nas wysyłkę e-maili. Dane osobowe będziemy przetwarzać do czasu ewentualnego wniesienia przez Ciebie sprzeciwu wobec przetwarzania danych, względnie - odwołania zgody, a po tym okresie wyłącznie dla celów i przez okres oraz w zakresie wymaganym przez przepisy prawa lub dla zabezpieczenia ewentualnych roszczeń. Możesz żądać dostępu do swoich danych osobowych, ich sprostowania, usunięcia lub ograniczenia przetwarzania. Masz prawo wniesienia sprzeciwu wobec przetwarzania – w tym profilowania. Masz także prawo do przenoszenia swoich danych oraz prawo cofnięcia zgody w każdym czasie, co pozostanie bez wpływu na zgodność z prawem przetwarzania dokonanego przez Pluxee przed jej cofnięciem oraz masz prawo wniesienia skargi do organu nadzorczego (Prezesa Urzędu Ochrony Danych Osobowych)."]
[null,null,"Wyrażam dobrowolną zgodę na otrzymywanie informacji handlowych i marketingowych od Pluxee na podany przeze mnie adres poczty elektronicznej."]
[null,null,"Wyrażam dobrowolną zgodę na prowadzenie przez Pluxee działań marketingowych przy użyciu podanego przeze mnie numeru telefonu."]
[null,null,"Wyrażam dobrowolną zgodę na profilowanie, którego skutkiem będą automatycznie podejmowane decyzje, mające dla mnie znaczenie – jak np. udzielenie rabatów lub ofert specjalnych. "]
[null,"Data: ",null,"Pieczęć firmowa i podpis"]
[]
[]
[null,"WYŻEJ WYMIENIONE DANE SĄ NIEZBĘDNE DO REALIZACJI ZAMÓWIENIA\nPoprzez umieszczenie podpisu pod niniejszym Zamówieniem i jego przesłanie w formie papierowej lub elektronicznej , jak również zaakceptowanie wypełnionego Zamówienia w formie mailowej Zamawiający oświadcza, że:  \n- jest upoważniony do reprezentowania Klienta na podstawie KRS, CEIDG lub pełnomocnictwa oraz,  że \nzapoznał się i akceptuje Ogólne Warunku Świadczenia Usług \"OWU\", które stanowią integralną część zamówienia. \n- upoważnia Pluxee Polska Sp. z o.o.  do wystawienia faktury VAT bez podpisu. Dane do faktury zostały określone w punkcie I.\n- zamówione Karty są udostępnione byłym lub obecnym pracownikom lub współpracownikom. Tożsamość osób otrzymujących karty jest przez nas weryfikowana, a ich  dane są przez nas przechowywane.\nCZYTELNIE WYPEŁNIONE ZAMÓWIENIE PROSIMY WYSŁAĆ:\n- mailem na adres: kontakt@pluxeegroup.com\nSkładając Zamówienie Klient każdorazowo zawiera Umowę na dostawę Kart wskazanych w Zamówieniu, na warunkach określonych w tym Zamówieniu i OWU, których postanowienia zastępują postanowienia dotychczasowych, innych Umów zawartych odrębnie z Klientem.  Postanowienia dotychczasoych, odrębnych umów znajdują zastosowanie tylko w zakresie niezdefiniowanym w OWU i Zamówieniu, w szczególności w zakresie warunków cenowych."]
[]
[]
[]
[null,"Pluxee Polska Sp. z o.o. z siedzibą w Warszawie, ul. Rzymowskiego 53, 02-697 Warszawa, Sąd Rejonowy dla m. st. Warszawy w Warszawie, XIII Wydział Gospodarczy KRS , numer KRS 0000033826, Kapitał Zakładowy 3 000 000 PLN , NIP 522-23-57-343"]

{"sheet":"Specyfikacja do zasilenia ","index":1,"n_rows":43,"n_cols":3,"rows_kept":43,"cut":false,"hidden":false,"merged":[[36,6,36,7],[2,3,30,3],[38,3,65535,3],[1,0,58,0],[41,1,41,2],[42,1,42,2],[3,1,3,2],[0,1,0,2],[1,1,2,2]]}
[null,"SPECYFIKACJA DO ZASILENIA \nKARTY PLUXEE NAGRODA\n(FORMULARZ PROSIMY WYPEŁNIAĆ DRUKOWANYMI LITERAMI)"]
["ZŁÓŻ ZAMÓWIENIE PRZEZ INTERNET: www.pluxee.pl, e-mail: kontakt@pluxeegroup.com, tel.: 22 535 14 14","Załącznik nr do zamówienia Firmy:"]
[]
[null,"I. Zasilam Karty Pluxee Nagroda według poniższej specyfikacji:"]
[null,"WPISZ ILOŚĆ KART \n(Podać w przypadku zakupu nowych Kart)","KWOTA ZASILENIA"]
[null,"NUMER KARTY \n(Podać w przypadku doładowania posiadanych Kart)","KWOTA ZASILENIA"]
[]
[]
[]
[]
[]
[]
[]
[]
[]
[]
[]
[]
[]
[]
[]
[]
[]
[]
[]
[]
[]
[]
[null,"RAZEM ILOŚĆ KART:"]
[]
[]
[]
[]
[]
[]
[]
[]
[]
[]
[]
[]
[null,"WYPEŁNIONĄ SPECYFIKACJĘ PROSIMY WYSŁAĆ MAILEM na adres: kontakt@pluxeegroup.com\n"]
[null,"Pluxee Polska Sp. z o.o. z siedzibą w Warszawie, ul. Rzymowskiego 53, 02-697 Warszawa, Sąd Rejonowy dla m. st. Warszawy w Warszawie,\nXIII Wydział Gospodarczy KRS , numer KRS 0000033826, Kapitał Zakładowy 3 000 000 PLN , NIP 522-23-57-343"]

{"sheet":"Kalkulator i spec. konfekcji","index":2,"n_rows":42,"n_cols":7,"rows_kept":42,"cut":false,"hidden":false,"merged":[[11,2,11,3],[23,2,23,3],[29,2,29,3],[34,1,39,4],[0,1,9,4]]}
[null,"KALKULATOR KOSZTU KONFEKCJI KART \nORAZ SPECYFIKACJA DO KONFEKCJI"]
[]
[]
[]
[]
[]
[]
[]
[]
[]
[]
[null,"PERSONALIZACJA / INSERTY","Liczba Kart:"]
[]
[null,"   Ozdobne etui na koperty - projekt standardowy Pluxee",1.5,"NIE",{"$f":"IF((D14=\"TAK\"),C14*$E$12,0)","v":0},"Uzupełnij opis poniżej ",{"$f":"IF(D14 =\"NIE\",\"\",\"Proszę upełnić specyfikację konfekcji\")","v":""}]
[]
[null,"Włożenie kopert z kartami do etui ozdobnego Pluxee ",0.3,"NIE",{"$f":"IF((D16=\"TAK\"),C16*$E$12,0)","v":0},"Uzupełnij opis poniżej ",{"$f":"IF(D16 =\"NIE\",\"\",\"Proszę upełnić specyfikację konfekcji\")","v":""}]
[]
[null,"   Personalizacja nadruku na kopercie lub etui (np.imię i nazwisko, kwota) - nadruk czarno-biały ",0.49,"NIE",{"$f":"IF((D18=\"TAK\"),C18*$E$12,0)","v":0},"Uzupełnij opis poniżej ",{"$f":"IF(D18 =\"NIE\",\"\",\"Proszę upełnić specyfikację konfekcji\")","v":""}]
[]
[null,"Personalizacja nadruku niestandardowego na kopercie lub etui (np. logo klienta) - nadruk kolorowy ",0.8,"NIE",{"$f":"IF((D20=\"TAK\"),C20*$E$12,0)","v":0},null,{"$f":"IF(D20 =\"NIE\",\"\",\"Proszę upełnić specyfikację konfekcji\")","v":""}]
[]
[null,"   Dołożenie dodatkowych ulotek do kopert lub etui (format A5 lub mniejszy, złożony w 'C')",0.4,"NIE",{"$f":"IF((D22=\"TAK\"),C22*$E$12,0)","v":0},null,{"$f":"IF(D22 =\"NIE\",\"\",\"Proszę upełnić specyfikację konfekcji\")","v":""}]
[]
[null,"PACZKOWANIE","Liczba oddzielnych podpaczek:"]
[]
[null,"   Pakowanie zamówienia w podziale na kilka podpaczek pod jeden adres dostawy",7,"NIE",{"$f":"IF((D26=\"TAK\"),C26*$E$24,0)","v":0},"Uzupełnij opis poniżej ",{"$f":"IF(D26 =\"NIE\",\"\",\"Proszę upełnić specyfikację konfekcji\")","v":""}]
[]
[null,"   Ułożenie kopert w paczce (np. alfabetycznie, wg kwot zasilenia, wg przesłanej listy)",0.1,"NIE",{"$f":"IF((D28=\"TAK\"),C28*$E$12,0)","v":0},"Uzupełnij opis poniżej ",{"$f":"IF(D28 =\"NIE\",\"\",\"Proszę upełnić specyfikację konfekcji\")","v":""}]
[]
[null,null,"Łącznie koszt konfekcji:",null,{"$f":"E14+E18+E22+E26+E28+E20+E16","v":0}]
[]
[]
[]
[]
[null,"Szczegółowy opis wykonania usługi: "]
[]
[]
[]
[]
[]
[]
[null,"* W przypadku personalizowanych kopert powinien zostać wypełniony standardowy załącznik Excel zawierający niezbędne dane"]

{"sheet":"Specyfikacja konfekcji","index":3,"n_rows":1,"n_cols":4,"rows_kept":1,"cut":false,"hidden":false,"merged":[]}
["Imię ","Nazwisko ","Kwota zasilenia ","Dodatkowe uwagi "]

{"sheet":"Arkusz3","index":4,"n_rows":0,"n_cols":0,"rows_kept":0,"cut":false,"hidden":true,"merged":[]}